bitfinex-derivatives/quotes_ETHF0:USTF0_20250507
["timestamp","ask_amount","ask_price","bid_price","bid_amount"]
[1746641639736,6.6955,1795.5,1795.1,6.7535]
[1746641639937,12.0114,1795.5,1794.9,3.2078]
[1746641640235,3.2078,1795.3,1795.0,6.7535]
[1746641640439,8.5237,1795.5,1795.0,6.7535]
[1746641640641,6.6955,1795.4,1794.9,3.2078]
[1746641640942,1.11386,1795.3,1794.9,3.2078]
[1746641641137,9.9033,1795.2,1794.8,6.7535]
[1746641641340,9.9033,1795.2,1794.7,9.6148]
[1746641641640,6.6955,1795.2,1794.9,3.2078]
[1746641642143,6.6955,1795.2,1795.0,6.866]
[1746641642643,6.6955,1795.2,1794.7,9.6148]
[1746641642841,6.6955,1795.2,1794.8,6.866]
[1746641643042,6.6955,1795.2,1794.7,9.6148]
[1746641643341,3.2078,1794.8,1794.5,6.866]
[1746641643543,6.7738,1794.7,1794.5,3.2078]
[1746641643735,3.2078,1795.2,1794.5,10.0738]
[1746641643944,1.11397,1795.1,1794.5,47.666]
[1746641644139,3.2078,1795.0,1794.5,47.666]
[1746641644330,6.7526,1794.9,1794.5,10.0738]
[1746641645246,6.7526,1794.9,1794.8,1.1141]
[1746641645644,8.0799,1795.4,1795.3,1.11385]
[1746641645945,9.19373,1795.4,1795.3,1.11385]
[1746641646142,14.19373,1795.4,1795.3,1.11385]
[1746641646447,8.0799,1795.4,1795.3,1.11385]
[1746641646644,9.19369,1795.4,1795.3,1.11385]
[1746641646846,14.19369,1795.4,1795.3,1.11385]
[1746641647046,5.47108028,1795.7,1795.5,1.11372]
[1746641647343,5.47108028,1795.7,1794.9,15.50004]
[1746641647344,6.7526,1795.5,1795.4,1.11379]
[1746641648339,9.9604,1795.5,1795.4,1.11379]
[1746641648540,6.7526,1795.5,1795.4,1.11379]
[1746641650546,6.7526,1795.5,1795.4,1.11379]
[1746641651144,11.7526,1795.5,1795.0,2.78506]
[1746641651350,11.7526,1795.5,1794.8,2.78538]
[1746641651351,3.2078,1795.2,1794.8,2.78538]
[1746641651543,3.2078,1795.0,1794.9,1.1141]
[1746641651744,11.2486,1795.1,1795.0,1.11403]
[1746641653053,11.2486,1795.1,1795.0,7.66663]
[1746641653251,6.2883,1795.1,1795.0,7.66663]
[1746641653847,6.2883,1795.1,1795.0,1.11403]
[1746641655154,8.4325,1795.4,1795.3,1.11385]
[1746641655447,8.4325,1795.4,1795.0,6.7882]
[1746641655448,8.4325,1795.4,1795.0,1.11402]
[1746641655753,4.32177,1795.1,1795.0,1.11402]
[1746641655948,9.9899,1795.3,1795.1,1.11392]
[1746641656251,6.7821,1795.0,1794.9,1.1141]
[1746641656655,3.2078,1795.3,1795.2,1.11391]
[1746641656847,9.4345,1795.3,1795.2,1.11391]
[1746641657644,14.90558028,1795.3,1795.2,1.11391]
[1746641658554,11.69778028,1795.3,1795.2,1.11391]
[1746641663659,5.47108028,1795.3,1795.2,1.11391]
[1746641663857,11.81858028,1795.3,1795.2,1.11391]
[1746641664254,5.47108028,1795.3,1795.2,1.11391]
[1746641664656,5.47108028,1795.3,1794.8,5.2331]
[1746641664657,11.81858028,1795.3,1794.8,5.2331]
[1746641664849,11.81858028,1795.3,1794.9,0.11142682]
[1746641664850,17.81112028,1795.3,1794.9,0.11142682]
[1746641665152,4.32183,1795.0,1794.9,0.11142682]
[1746641665558,1.1142,1794.8,1794.3,9.5708]
[1746641665757,6.5321,1794.7,1794.3,16.2538]
[1746641665952,3.2078,1794.6,1794.4,0.11145786]
[1746641666152,6.5321,1794.5,1794.4,0.11145786]
[1746641668355,7.64644,1794.5,1794.4,0.11145786]
[1746641668662,11.5321,1794.5,1793.8,13.3735]
[1746641668854,3.2078,1794.3,1793.9,0.11148893]
[1746641669160,6.9324,1794.2,1793.9,0.11148893]
[1746641669751,6.9324,1794.2,1793.9,6.73388893]
[1746641670147,3.2078,1794.3,1793.9,6.73388893]
[1746641670454,10.1402,1794.5,1794.4,1.11441]
[1746641671661,17.32750727,1794.5,1794.4,1.11441]
[1746641672864,10.39510727,1794.5,1794.4,1.11441]
[1746641673461,7.18730727,1794.5,1794.4,1.11441]
[1746641673857,7.18730727,1794.5,1794.4,9.32221]
[1746641674064,7.18730727,1794.5,1794.4,4.32221]
[1746641674358,4.32203,1794.7,1794.2,14.61046]
[1746641674554,6.9129,1794.6,1794.2,14.61046]
[1746641675260,6.9129,1794.6,1794.2,17.81826]
[1746641675463,6.9129,1794.6,1794.2,14.61046]
[1746641676168,6.9129,1794.6,1794.2,9.40866]
[1746641676360,1.1145,1794.3,1793.9,5.10818893]
[1746641676663,3.2078,1794.1,1793.9,0.11148893]
[1746641676862,1.1145,1794.3,1793.9,0.11148893]
[1746641676863,3.2078,1794.3,1793.9,0.11148893]
[1746641677162,8.29851,1794.4,1794.0,6.8118]
[1746641677359,7.1841,1794.4,1794.0,6.8118]
[1746641678965,7.1841,1794.4,1794.1,0.1114765]
[1746641679357,7.1841,1794.4,1794.2,6.6021]
[1746641679559,7.1841,1794.4,1794.3,0.11146408]
[1746641682465,8.68977077,1794.7,1794.3,0.11146408]
[1746641682769,6.9729,1794.6,1794.4,6.8292]
[1746641683359,6.9729,1794.6,1794.5,0.11145165]
[1746641684169,8.68977077,1794.7,1794.5,0.11145165]
[1746641684367,12.08577077,1794.7,1794.6,6.5547]
[1746641684569,5.48197077,1794.7,1794.6,9.7625]
[1746641684770,5.48197077,1794.7,1794.6,14.7625]
[1746641685270,5.48197077,1794.7,1794.6,25.9623]
[1746641686770,0.63582434,1794.8,1794.6,25.9623]
[1746641687076,4.56213296,1795.0,1794.9,1.1141]
[1746641687263,10.77720036,1795.4,1795.3,1.11385]
[1746641687559,9.56262036,1795.4,1795.3,50.12165]
[1746641687763,12.57340042,1795.5,1795.4,1.11379]
[1746641687764,9.13830709,1795.5,1795.4,1.11379]
[1746641687965,5.36816616,1795.8,1795.7,1.1136]
[1746641688176,5.36816616,1795.8,1795.7,10.6424]
[1746641688662,5.36816616,1795.8,1795.7,20.7956]
[1746641689270,3.63509616,1795.8,1795.7,20.7956]
[1746641689467,37.70801309,1796.3,1796.2,1.11329]
[1746641689678,37.70801309,1796.3,1796.2,10.64109]
[1746641690269,37.70801309,1796.3,1796.2,15.52019]
[1746641690961,34.66211309,1796.3,1796.2,20.52019]
[1746641691165,5.4543774,1796.3,1796.2,25.87179]
[1746641691374,14.36706423,1796.7,1796.6,1.11304]
[1746641691575,14.36706423,1796.7,1796.6,10.64084]
[1746641691869,6.6389,1796.9,1796.6,50.3278]
[1746641692174,6.6389,1796.9,1796.8,1.11292]
[1746641692370,6.6389,1796.9,1796.3,18.99757]
[1746641692371,14.8467,1796.9,1796.3,18.99757]
[1746641692574,9.8467,1796.9,1796.4,2.78292]
[1746641692772,6.6389,1796.9,1796.7,1.11292]
[1746641692967,6.6389,1796.9,1796.8,1.11292]
[1746641696073,11.6389,1796.9,1796.4,40.8]
[1746641696273,11.6389,1796.9,1796.4,47.4289]
[1746641696274,6.6389,1796.9,1796.4,47.4289]
[1746641696467,6.6389,1796.9,1796.4,50.2118]
[1746641696668,6.6389,1796.9,1796.8,1.11292]
[1746641697272,6.6389,1796.9,1796.8,4.32072]
[1746641697473,6.6389,1796.9,1796.8,1.11292]
[1746641698372,11.6389,1796.9,1796.8,1.11292]
[1746641698762,6.6389,1796.9,1796.8,1.11292]
[1746641699969,7.75176,1796.9,1796.8,1.11292]
[1746641700176,12.75176,1796.9,1796.8,1.11292]
[1746641700380,1.11293,1796.8,1796.7,1.11295]
[1746641700565,11.4894,1796.8,1796.0,6.316]
[1746641700769,3.2078,1796.1,1795.9,2.78369]
[1746641701072,6.6692,1796.0,1795.9,1.11348]
[1746641701469,11.5529,1796.0,1795.4,2.78444]
[1746641701668,3.2078,1795.7,1795.6,1.11366]
[1746641702478,1.11376,1795.5,1795.1,2.78483]
[1746641702663,10.4472,1795.6,1795.0,3.2078]
[1746641702868,3.2078,1795.4,1794.8,21.38218691]
[1746641703071,7.2394,1795.3,1794.8,21.38218691]
[1746641703573,7.2394,1795.3,1795.0,0.11142061]
[1746641703767,7.2394,1795.3,1795.0,3.31922061]
[1746641703964,7.2394,1795.3,1795.0,10.47242061]
[1746641704775,7.2394,1795.3,1795.0,3.31922061]
[1746641704971,7.2394,1795.3,1795.0,0.11142061]
[1746641706578,7.2394,1795.3,1795.1,16.516]
[1746641706782,4.8996,1795.8,1795.2,6.9922]
[1746641706971,6.9408,1795.7,1795.4,3.2078]
[1746641707172,4.9944,1796.2,1795.6,3.2078]
[1746641707368,6.9408,1796.1,1795.8,3.2078]
[1746641707577,10.1486,1796.1,1795.5,6.317]
[1746641707878,11.26196,1796.1,1795.5,6.317]
[1746641708079,10.1486,1796.1,1795.6,44.0078]
[1746641708471,10.1486,1796.1,1795.5,6.317]
[1746641708672,10.1486,1796.1,1795.6,10.2285]
[1746641708877,11.26195,1796.1,1795.7,7.0207]
[1746641709077,3.2078,1795.9,1795.5,6.317]
[1746641709281,6.9408,1796.1,1795.6,10.2285]
[1746641709480,10.1486,1796.1,1795.7,7.0207]
[1746641709875,10.1486,1796.1,1795.8,0.11137097]
[1746641710280,3.2078,1795.9,1795.8,0.11137097]
[1746641710682,10.1486,1796.1,1795.8,0.11137097]
[1746641711284,6.9408,1796.1,1795.9,6.9049]
[1746641711583,6.9408,1796.1,1795.8,3.31917097]
[1746641712086,6.9408,1796.1,1795.9,6.9049]
[1746641712787,6.9408,1796.1,1795.8,0.11137097]
[1746641713483,6.9408,1796.1,1795.9,6.9049]
[1746641713976,6.9408,1796.1,1795.8,0.11137097]
[1746641715380,6.9408,1796.1,1795.9,7.1869]
[1746641715580,6.9408,1796.1,1796.0,0.11135857]
[1746641715976,5.3345,1796.4,1796.0,0.11135857]
[1746641715977,8.5423,1796.4,1796.0,11.37935857]
[1746641716186,3.2078,1796.4,1796.0,13.56625857]
[1746641718285,3.2078,1797.3,1796.9,7.2021]
[1746641718489,7.1115,1797.0,1796.3,6.268]
[1746641718788,7.1115,1797.0,1796.4,3.2078]
[1746641718985,7.1115,1797.0,1796.5,7.2021]
[1746641719694,7.1115,1797.0,1796.6,3.2078]
[1746641719886,7.1115,1797.0,1796.7,7.2021]
[1746641720087,7.1115,1797.0,1796.7,13.4691]
[1746641720288,7.1115,1797.0,1796.9,1.11286]
[1746641720885,12.1115,1797.0,1796.8,1.11289]
[1746641721182,4.32071,1796.9,1796.7,1.11298]
[1746641721388,10.382,1796.8,1796.6,1.11302]
[1746641721585,12.1155,1796.8,1796.7,1.22429518]
[1746641721784,7.1742,1796.8,1796.7,1.22429518]
[1746641722688,16.49492,1796.8,1796.7,0.11131518]
[1746641722884,1.11306,1796.6,1796.2,2.78309]
[1746641723084,10.382,1796.5,1796.4,1.11311]
[1746641723485,15.382,1796.5,1796.4,1.11311]
[1746641723691,18.16482,1796.5,1795.9,2.78354]
[1746641723891,18.16482,1796.5,1795.7,9.05087]
[1746641723892,3.2078,1796.1,1796.0,1.11341]
[1746641724089,3.2078,1796.1,1796.0,1.22476857]
[1746641724388,8.2078,1796.1,1796.0,1.22476857]
[1746641724586,21.30393,1796.3,1796.2,1.11329]
[1746641724788,26.30393,1796.3,1796.2,1.11329]
[1746641725284,1.1133,1796.2,1796.1,1.11331]
[1746641725489,6.5798,1796.2,1796.1,1.11335]
[1746641727285,12.69309,1796.2,1796.0,0.11135857]
[1746641727491,4.32115,1796.1,1796.0,0.11135857]
[1746641727787,15.2877,1796.1,1796.0,1.22476857]
[1746641727993,16.40105,1796.1,1796.0,0.11135857]
[1746641728288,11.40105,1796.1,1796.0,0.11135857]
[1746641728491,16.40105,1796.1,1796.0,0.11135857]
[1746641728785,2.7837,1795.9,1795.4,1.11375]
[1746641728989,3.2078,1795.6,1795.5,1.11372]
[1746641729585,5.0736,1795.7,1795.6,1.11366]
[1746641729985,5.1142,1795.8,1795.7,1.1136]
[1746641730586,9.4748,1796.1,1796.0,1.11341]
[1746641730787,1.11328,1796.3,1796.2,1.11329]
[1746641731084,9.4748,1796.4,1795.8,2.78377]
[1746641731394,4.32115,1796.1,1796.0,1.11341]
[1746641731596,3.2078,1796.1,1795.5,2.78426]
[1746641731891,4.32129,1795.9,1795.5,10.12076]
[1746641732096,3.2078,1795.9,1795.3,5.0558]
[1746641732280,1.11369,1795.6,1795.2,3.2078]
[1746641732484,4.32144,1795.7,1795.1,10.202]
[1746641732685,3.2078,1795.7,1795.1,10.202]
[1746641733097,4.3214,1795.7,1795.1,10.202]
[1746641733395,1.1137,1795.6,1795.1,10.202]
[1746641733593,3.2078,1795.7,1795.1,10.202]
[1746641733790,4.3214,1795.7,1795.1,10.202]
[1746641734294,3.2078,1795.7,1795.1,6.9942]
[1746641734497,1.11375,1795.5,1795.1,6.9942]
[1746641734892,3.2078,1795.4,1794.9,6.268]
[1746641735092,4.3216,1795.4,1794.8,16.8984]
[1746641735298,3.2078,1795.4,1794.9,3.2078]
[1746641735594,3.2078,1795.4,1795.0,7.3295]
[1746641735803,3.2078,1795.2,1794.8,4.9081]
[1746641736096,3.2078,1795.2,1794.8,12.2376]
[1746641736399,1.11402,1795.1,1794.7,3.2078]
[1746641736697,12.26061,1795.2,1794.7,3.2078]
[1746641736897,8.3006,1795.0,1794.5,7.3295]
[1746641737094,1.11421,1794.8,1794.4,7.26012567]
[1746641737297,3.2078,1794.7,1794.4,7.26012567]
[1746641737593,1.11416,1794.8,1794.4,7.26012567]
[1746641737799,4.32195,1794.9,1794.5,7.3295]
[1746641737992,1.11418,1794.8,1794.5,7.3295]
[1746641738191,3.2078,1794.9,1794.5,7.3295]
[1746641738696,3.2078,1794.9,1794.4,7.26012567]
[1746641738900,1.11426,1794.7,1794.4,7.26012567]
[1746641739100,1.1143,1794.6,1794.4,7.26012567]
[1746641739399,3.2078,1794.8,1794.4,7.26012567]
[1746641739600,3.2078,1794.8,1794.5,6.6869]
[1746641740099,4.32197,1794.8,1794.4,7.26012567]
[1746641740301,3.2078,1794.8,1794.4,7.26012567]
[1746641740592,8.2848,1794.7,1794.3,3.2078]
[1746641740798,3.2078,1794.9,1794.4,6.6869]
[1746641740999,1.11417,1794.8,1794.4,6.6869]
[1746641741201,3.2078,1794.7,1794.4,6.6869]
[1746641741594,4.32204,1794.7,1794.4,6.6869]
[1746641741898,4.32204,1794.7,1794.2,3.2078]
[1746641742801,3.2078,1794.7,1794.2,3.2078]
[1746641743003,3.2078,1794.7,1794.3,7.2655]
[1746641743402,4.32202,1794.7,1794.3,7.2655]
[1746641743903,4.32204,1794.7,1794.3,7.2655]
[1746641744202,3.2078,1794.7,1794.3,7.2655]
[1746641744903,3.2078,1794.9,1794.4,8.1405]
[1746641745103,3.2078,1794.9,1794.5,7.3743]
[1746641745304,3.2078,1794.9,1794.8,1.11416]
[1746641745698,6.9167,1795.1,1795.0,1.11403]
[1746641746293,3.2078,1795.2,1795.1,1.11397]
[1746641746493,6.9167,1795.3,1795.2,1.11391]
[1746641746802,12.21402,1796.3,1795.5,2.7843]
[1746641747002,12.21402,1796.3,1795.9,1.11343]
[1746641747003,4.32118,1796.1,1795.9,1.11343]
[1746641747196,8.2866,1796.3,1796.0,1.11341]
[1746641747395,15.86999935,1796.5,1796.0,5.99123]
[1746641747698,13.77531935,1796.5,1796.1,7.3743]
[1746641747893,6.8584,1796.4,1796.3,1.1132]
[1746641748099,12.66219935,1796.5,1796.1,10.5821]
[1746641748412,3.2078,1796.7,1796.1,10.5821]
[1746641748413,10.0662,1796.7,1796.1,7.3743]
[1746641748602,6.8584,1796.4,1796.2,7.1975]
[1746641749203,3.2078,1796.7,1796.2,10.4053]
[1746641749401,4.32058,1797.1,1796.2,10.4053]
[1746641749604,6.8584,1797.1,1796.7,3.2078]
[1746641749903,6.8584,1797.1,1796.8,7.1975]
[1746641750501,6.222,1797.4,1796.8,7.1975]
[1746641750705,3.2078,1797.3,1797.1,1.11269]
[1746641751002,3.2078,1797.8,1797.5,1.11248]
[1746641751203,3.2078,1798.3,1797.6,9.4298]
[1746641751500,3.2078,1798.4,1798.1,1.1121]
[1746641751903,7.0424,1798.3,1797.8,3.2078]
[1746641752210,8.15443,1798.3,1797.9,8.2748]
[1746641752506,3.2078,1798.2,1797.7,3.2078]
[1746641752705,7.0424,1798.1,1797.7,3.2078]
[1746641753003,7.0424,1798.1,1797.8,7.1626]
[1746641753209,7.0424,1798.1,1797.6,9.4298]
[1746641753402,10.2502,1798.1,1797.8,1.11226]
[1746641753605,4.31963,1798.6,1798.0,3.2078]
[1746641753810,9.9682,1798.6,1798.4,1.11191]
[1746641754002,9.9682,1798.6,1798.3,1.11196]
[1746641754300,9.9682,1798.6,1798.0,3.2078]
[1746641754301,4.31975,1798.4,1798.0,10.0208]
[1746641754500,7.87241,1798.3,1798.0,6.813]
[1746641754695,9.9682,1798.3,1797.8,3.2078]
[1746641754901,1.11206,1798.2,1797.9,1.1122]
[1746641755099,6.7604,1798.1,1797.9,1.1122]
[1746641755299,6.7604,1798.1,1798.0,1.11218]
[1746641755712,1.11196,1798.4,1798.1,1.1121]
[1746641755912,6.7604,1798.3,1798.2,1.11205]
[1746641756310,3.2078,1798.4,1798.3,1.11199]
[1746641756510,9.9682,1798.5,1798.3,1.11199]
[1746641756699,9.9682,1798.5,1797.9,1.11221]
[1746641757009,1.11201,1798.3,1797.8,3.2078]
[1746641757215,10.3738,1798.2,1797.8,3.2078]
[1746641757404,11.48589,1798.2,1797.9,1.11219]
[1746641757603,11.48589,1798.2,1797.6,44.0078]
[1746641757604,3.2078,1798.1,1797.6,3.2078]
[1746641757812,9.4248,1798.3,1797.9,3.2078]
[1746641758014,7.166,1798.2,1798.0,1.11216]
[1746641758410,7.166,1798.2,1797.9,3.2078]
[1746641758611,7.166,1798.2,1798.0,7.173]
[1746641759114,8.27809,1798.2,1798.0,7.173]
[1746641759318,8.2781,1798.2,1797.8,3.2078]
[1746641759515,8.2781,1798.2,1797.9,7.173]
[1746641759711,7.166,1798.2,1797.9,7.173]
[1746641759913,7.166,1798.2,1798.1,1.11211]
[1746641760112,8.27805,1798.2,1798.1,1.11211]
[1746641760311,3.2078,1798.5,1798.0,3.2078]
[1746641760511,7.3205,1798.5,1798.2,3.2078]
[1746641760718,8.43239,1798.5,1798.2,3.2078]
[1746641760909,7.3205,1798.5,1798.2,3.2078]
[1746641761105,7.3205,1798.5,1798.4,3.2078]
[1746641761306,4.31943,1798.9,1798.4,3.2078]
[1746641761511,7.3205,1798.8,1798.5,7.1798]
[1746641761713,3.2078,1798.9,1798.6,3.2078]
[1746641761914,3.2078,1798.9,1798.7,7.1798]
[1746641762820,0.02078,1799.1,1798.8,3.2078]
[1746641763020,0.02078,1799.1,1798.9,7.0115]
[1746641763222,0.02078,1799.1,1798.6,3.2078]
[1746641763517,0.02078,1799.1,1798.8,3.2078]
[1746641763710,0.02078,1799.1,1798.9,7.0115]
[1746641763916,1.11162,1798.9,1798.8,3.2078]
[1746641764211,10.02528,1799.1,1798.5,7.0115]
[1746641764411,3.2078,1798.8,1798.3,3.2078]
[1746641764617,6.7967,1798.7,1798.5,3.2078]
[1746641764818,6.7967,1798.7,1798.6,7.0115]
[1746641765016,1.13232,1799.1,1798.6,7.0115]
[1746641765218,6.81748,1799.1,1798.7,3.2078]
[1746641765523,1.11157,1799.0,1798.7,3.2078]
[1746641765817,6.7967,1798.9,1798.6,9.4208]
[1746641766013,1.13228,1799.1,1798.8,3.2078]
[1746641766214,8.54733,1799.1,1798.7,6.8533]
[1746641766516,1.11172,1798.8,1798.6,6.213]
[1746641766719,7.415,1798.7,1798.6,6.213]
[1746641767018,1.11161,1799.0,1798.6,6.213]
[1746641767220,8.52661,1799.0,1798.7,6.8533]
[1746641767415,7.415,1799.0,1798.8,3.2078]
[1746641767618,0.02078,1799.1,1798.8,3.2078]
[1746641768019,0.02078,1799.1,1798.9,6.96447905]
[1746641768611,4.34013,1799.1,1798.9,0.11117905]
[1746641768810,7.0301,1799.0,1798.9,0.11117905]
[1746641769017,8.14166,1799.0,1798.9,0.11117905]
[1746641769412,7.0301,1799.0,1798.9,0.11117905]
[1746641770018,8.14166,1799.0,1798.9,0.11117905]
[1746641770428,1.11167,1798.9,1798.4,3.2078]
[1746641770723,7.0301,1798.8,1798.6,3.2078]
[1746641770912,1.11174,1798.7,1798.6,3.2078]
[1746641771117,1.11174,1798.7,1798.5,0.11120378]
[1746641771118,1.1118,1798.6,1798.5,0.11120378]
[1746641771313,4.9615,1799.0,1798.5,0.11120378]
[1746641771518,7.0301,1798.8,1798.6,10.6435]
[1746641771713,8.1693,1799.0,1798.7,7.4357]
[1746641771919,6.8859,1799.1,1798.8,3.2078]
[1746641772120,6.8859,1799.1,1798.5,3.31900378]
[1746641772313,6.8859,1799.1,1798.7,3.2078]
[1746641772526,6.8859,1799.1,1798.9,3.2078]
[1746641772727,6.8859,1799.1,1799.0,7.0611]
[1746641772928,6.8859,1799.1,1798.7,6.211]
[1746641773219,1.11173,1798.8,1798.6,3.2078]
[1746641773413,1.11166,1798.9,1798.6,3.2078]
[1746641773617,6.8859,1798.9,1798.7,7.0611]
[1746641773814,1.11171,1798.8,1798.6,3.2078]
[1746641774024,6.8859,1798.7,1798.6,3.2078]
[1746641775227,7.99764,1798.7,1798.6,6.7748]
[1746641775522,1.1118,1798.6,1798.5,0.11120378]
[1746641775928,11.20548,1798.7,1798.5,0.11120378]
[1746641776128,1.1118,1798.6,1798.5,0.11120378]
[1746641776423,7.0093,1798.6,1798.5,0.11120378]
[1746641778127,8.1211,1798.6,1798.5,0.11120378]
[1746641778517,8.1211,1798.6,1797.7,3.2078]
[1746641778518,2.77983,1798.4,1797.7,3.2078]
[1746641778723,3.2078,1797.8,1797.6,7.0041]
[1746641778928,6.9612,1797.7,1797.4,3.2078]
[1746641779227,6.9612,1797.7,1797.5,7.0041]
[1746641779925,3.2078,1798.2,1797.6,3.2078]
[1746641780124,6.9612,1798.0,1797.7,7.0041]
[1746641780626,6.9612,1798.0,1797.8,3.2078]
[1746641780826,8.07338,1798.0,1797.9,8.11634]
[1746641781028,1.11225,1797.9,1797.8,1.11226]
[1746641781228,1.11232,1797.8,1797.7,1.11231]
[1746641781527,8.16862,1797.8,1797.7,1.11231]
[1746641781723,3.2078,1798.2,1797.7,2.78091]
[1746641781927,7.0563,1798.0,1797.9,1.11224]
[1746641782121,3.2078,1798.2,1798.1,1.11211]
[1746641782327,10.2641,1798.2,1798.1,1.11211]
[1746641782527,7.0563,1798.2,1798.1,1.11211]
[1746641783030,7.28886,1798.6,1798.5,1.11183]
[1746641783423,4.31956,1798.7,1798.6,1.1118]
[1746641783726,1.11189,1798.5,1798.0,3.2078]
[1746641783927,3.2078,1798.7,1798.2,3.2078]
[1746641784231,4.31958,1798.7,1798.2,3.2078]
[1746641784529,7.2161,1798.6,1798.3,7.1702]
[1746641784730,7.2161,1798.6,1798.3,7.28141614]
[1746641785230,8.32791,1798.6,1798.3,7.28141614]
[1746641785525,1.11193,1798.4,1798.3,0.11121614]
[1746641785725,1.11226,1797.9,1797.7,3.2078]
[1746641786028,3.2078,1798.0,1797.8,1.11226]
[1746641786223,1.11235,1797.8,1797.7,1.11233]
[1746641786416,3.2078,1798.0,1797.8,1.11228]
[1746641786622,1.11228,1797.9,1797.8,1.11228]
[1746641786821,1.11233,1797.8,1797.7,1.11232]
[1746641787025,4.32013,1797.8,1797.7,1.11232]
[1746641787231,1.11228,1797.9,1797.8,1.11227]
[1746641787826,1.11233,1797.8,1797.5,7.0336]
[1746641789934,4.32008,1797.9,1797.5,7.0336]
[1746641790226,6.177,1798.1,1797.5,10.2414]
[1746641790426,3.2078,1798.2,1797.7,3.2078]
[1746641790929,3.2078,1798.2,1797.8,6.6858]
[1746641791730,1.11195,1798.4,1797.9,3.2078]
[1746641791927,9.40633,1798.8,1798.2,3.2078]
[1746641792132,1.11189,1798.5,1798.3,6.6858]
[1746641792625,14.96491,1798.8,1798.4,3.2078]
[1746641792626,9.40633,1798.8,1798.4,3.2078]
[1746641792824,1.11198,1798.4,1797.9,58.6646]
[1746641793026,1.11206,1798.3,1798.0,6.8986]
[1746641793225,3.2078,1798.3,1798.0,3.6]
[1746641793425,1.11209,1798.2,1798.0,3.6]
[1746641794235,1.11204,1798.3,1797.9,10.1064]
[1746641794430,1.11207,1798.2,1797.9,10.1064]
[1746641794629,1.11215,1798.1,1797.9,6.8986]
[1746641795230,1.11218,1798.0,1797.7,3.2078]
[1746641795426,3.2078,1798.2,1797.8,6.8986]
[1746641795737,1.11228,1797.9,1797.5,3.31906564]
[1746641795936,1.11214,1798.1,1797.7,3.2078]
[1746641796137,5.98808,1798.2,1797.7,3.2078]
[1746641796432,1.1123,1797.8,1797.6,0.11125945]
[1746641797134,1.11236,1797.7,1797.6,0.11125945]
[1746641797333,4.32016,1797.7,1797.6,0.11125945]
[1746641797532,6.11236,1797.7,1797.6,0.11125945]
[1746641797929,9.32016,1797.7,1797.6,0.11125945]
[1746641798635,4.32016,1797.7,1797.6,0.11125945]
[1746641798834,1.11236,1797.7,1797.6,0.11125945]
[1746641799029,4.32016,1797.7,1797.6,0.11125945]
[1746641799233,7.92016,1797.7,1797.6,0.11125945]
[1746641799433,12.92016,1797.7,1797.6,0.11125945]
[1746641799936,1.11255,1797.4,1797.3,7.26012567]
[1746641800138,14.09835,1797.4,1797.3,7.26012567]
[1746641800337,19.09835,1797.4,1797.3,7.26012567]
[1746641801041,2.78169,1797.2,1796.6,7.26012567]
[1746641801239,1.11294,1796.8,1796.6,14.27902567]
[1746641801445,1.11294,1796.8,1796.6,7.26012567]
[1746641801740,1.11298,1796.7,1796.6,7.26012567]
[1746641802131,6.178,1797.0,1796.6,7.26012567]
[1746641802333,6.178,1797.0,1796.7,6.8783]
[1746641802533,14.6086,1797.1,1796.7,6.8783]
[1746641803039,14.6086,1797.1,1796.6,7.26012567]
[1746641803040,17.39045,1797.1,1796.6,7.26012567]
[1746641803237,1.11298,1796.7,1796.6,7.26012567]
[1746641803739,3.2078,1796.7,1796.6,7.26012567]
[1746641803941,4.32078,1796.7,1796.6,7.26012567]
[1746641804138,4.32078,1796.7,1796.5,3.6]
[1746641804139,4.32081,1796.7,1796.5,3.6]
[1746641804335,3.2078,1796.7,1796.5,3.6]
[1746641804538,4.32079,1796.7,1796.5,3.6]
[1746641804840,4.32084,1796.6,1796.5,3.6]
[1746641805436,3.2078,1796.6,1796.5,3.6]
[1746641805635,11.09644,1796.6,1796.5,3.6]
[1746641806039,9.9834,1796.6,1796.5,3.6]
[1746641806341,11.09644,1796.6,1796.5,3.6]
[1746641808541,1.1134,1796.1,1795.6,3.2078]
[1746641808746,7.1438,1796.0,1795.6,3.2078]
[1746641808944,1.1135,1795.9,1795.7,6.8681]
[1746641809137,7.1438,1796.0,1795.7,6.8681]
[1746641809340,1.11351,1795.9,1795.7,6.8681]
[1746641809544,7.1438,1796.0,1795.7,6.8681]
[1746641809846,8.25723,1796.0,1795.7,6.8681]
[1746641810042,7.1438,1796.0,1795.7,6.8681]
[1746641810442,3.2078,1796.1,1795.7,11.8681]
[1746641810642,3.2078,1796.1,1795.7,6.8681]
[1746641810950,7.1438,1796.3,1795.9,3.2078]
[1746641811242,3.2078,1796.4,1796.0,6.8681]
[1746641811439,3.2078,1796.4,1796.0,17.4211]
[1746641811639,10.46771,1796.9,1796.3,3.2078]
[1746641811841,8.39995,1796.8,1796.4,7.3169]
[1746641812042,1.11299,1796.7,1796.4,7.3169]
[1746641812241,4.32084,1796.6,1796.4,7.3169]
[1746641812444,1.11304,1796.6,1796.4,7.3169]
[1746641812646,1.11303,1796.7,1796.4,7.3169]
[1746641812844,7.287,1796.6,1796.4,7.3169]
[1746641813145,8.40005,1796.6,1796.4,7.3169]
[1746641813341,1.1131,1796.5,1796.4,7.3169]
[1746641813538,1.11314,1796.5,1796.2,7.3169]
[1746641813734,11.60789,1796.6,1796.2,7.3169]
[1746641813937,11.6079,1796.6,1796.2,7.3169]
[1746641814238,10.4948,1796.6,1796.2,7.3169]